bitfinex/quotes_ETHUSD_20230110
["timestamp","ask_amount","ask_price","bid_price","bid_amount"]
[1673394214913,1.11702307,1335.5,1335.4,2.0]
[1673394215279,1.11702307,1335.5,1335.4,9.48839]
[1673394215469,1.11702307,1335.5,1335.4,2.066]
[1673394215680,1.11702307,1335.5,1335.4,2.0]
[1673394216697,1.11702307,1335.5,1335.3,11.44645035]
[1673394216904,8.60499307,1335.5,1335.3,1.754]
[1673394217154,1.11702307,1335.4,1335.2,7.6684]
[1673394217360,1.11702307,1335.4,1335.2,3.86366064]
[1673394217581,1.11702307,1335.4,1335.2,3.79766064]
[1673394218325,8.60544307,1335.4,1335.2,3.79766064]
[1673394218515,8.67144307,1335.4,1335.2,3.79766064]
[1673394219640,8.67144307,1335.4,1335.2,18.77607064]
[1673394219641,1.18302307,1335.4,1335.2,18.77607064]
[1673394219847,1.11702307,1335.4,1335.2,26.33158064]
[1673394220311,1.11702307,1335.4,1335.2,18.84207064]
[1673394220634,1.11702307,1335.4,1335.2,11.35270064]
[1673394221252,1.11702307,1335.4,1335.2,3.86366064]
[1673394221455,1.11702307,1335.4,1335.2,3.79766064]
[1673394223140,2.79460394,1335.4,1335.2,3.79766064]
[1673394224269,1.11702307,1335.4,1335.2,3.79766064]
[1673394224579,1.11702307,1335.4,1335.2,11.28707064]
[1673394224791,1.11702307,1335.4,1335.2,11.35307064]
[1673394225018,1.11702307,1335.4,1335.2,3.86366064]
[1673394225266,1.11702307,1335.4,1335.2,3.79766064]
[1673394225846,10.28299394,1335.4,1335.2,3.79766064]
[1673394226103,10.34899394,1335.4,1335.2,3.79766064]
[1673394226612,2.86060394,1335.4,1335.2,3.79766064]
[1673394226824,2.79460394,1335.4,1335.2,3.79766064]
[1673394229209,1.11702307,1335.3,1335.2,3.79766064]
[1673394229463,1.11702307,1335.3,1335.2,5.65593004]
[1673394229837,1.11702307,1335.3,1335.2,8.72193004]
[1673394232716,3.97913523,1335.4,1335.3,0.00287867]
[1673394232954,3.91313523,1335.4,1335.3,0.00287867]
[1673394233791,1.67758087,1335.4,1335.3,0.00287867]
[1673394234128,2.79808781,1335.4,1335.3,0.00287867]
[1673394234507,10.28647781,1335.4,1335.3,0.00287867]
[1673394234711,14.28394292,1335.4,1335.3,0.00287867]
[1673394234921,13.16344859,1335.4,1335.3,0.00287867]
[1673394235134,5.67505859,1335.4,1335.3,0.00287867]
[1673394237024,6.79551625,1335.4,1335.3,0.00287867]
[1673394237502,2.86403853,1335.4,1335.3,0.00287867]
[1673394237666,2.79803853,1335.4,1335.3,0.00287867]
[1673394238075,36.51672938,1335.5,1335.3,31.71738931]
[1673394238076,11.82647415,1335.5,1335.3,31.71738931]
[1673394238325,0.066,1335.5,1335.4,9.00770688]
[1673394238535,1.12061834,1335.5,1335.4,28.1229965]
[1673394238729,1.67758087,1335.6,1335.4,35.6113865]
[1673394238944,1.67758087,1335.6,1335.4,34.86668806]
[1673394239162,1.67758087,1335.6,1335.5,1.672]
[1673394239495,1.67758087,1335.6,1335.5,12.53496403]
[1673394239662,1.67758087,1335.6,1335.5,12.60096403]
[1673394240811,2.79791024,1335.6,1335.5,12.60096403]
[1673394241786,2.79791024,1335.6,1335.5,27.57662403]
[1673394241967,1.12032937,1335.6,1335.5,27.57662403]
[1673394242171,2.79791024,1335.6,1335.5,20.08580156]
[1673394242422,2.79791024,1335.6,1335.5,12.59797156]
[1673394242754,1.12032937,1335.6,1335.5,12.59797156]
[1673394243286,0.10857563,1335.7,1335.6,24.69678621]
[1673394243431,1.79702332,1335.9,1335.6,47.65217384]
[1673394243647,5.16232643,1336.0,1335.8,5.47572946]
[1673394243980,0.13860705,1336.0,1335.9,36.6886787]
[1673394244204,0.07260705,1336.0,1335.9,40.17491859]
[1673394244420,0.07260705,1336.0,1335.9,42.42834215]
[1673394244973,0.07260705,1336.0,1335.9,44.28542143]
[1673394245762,0.07260705,1336.0,1335.9,42.42834215]
[1673394246230,0.07260705,1336.0,1335.9,40.74834215]
[1673394247816,0.07260705,1336.0,1335.9,12.67009467]
[1673394248030,0.07260705,1336.0,1335.9,24.26614064]
[1673394248353,0.07260705,1336.0,1335.9,31.75173064]
[1673394249495,9.4e-07,1336.1,1336.0,2.0]
[1673394249658,9.4e-07,1336.1,1336.0,30.67202064]
[1673394249864,9.4e-07,1336.1,1336.0,37.8603817]
[1673394250331,9.4e-07,1336.1,1336.0,41.55910613]
[1673394250654,9.4e-07,1336.1,1336.0,43.24382481]
[1673394250806,9.4e-07,1336.1,1336.0,39.5443817]
[1673394251013,9.4e-07,1336.1,1336.0,43.24418392]
[1673394251558,9.4e-07,1336.1,1336.0,39.5443817]
[1673394252154,9.4e-07,1336.1,1336.0,43.24454348]
[1673394252321,0.0589585,1336.3,1336.1,2.7473]
[1673394252322,7.94e-06,1336.3,1336.1,2.7473]
[1673394252494,7.94e-06,1336.3,1336.2,37.37099064]
[1673394252701,7.94e-06,1336.3,1336.2,41.13715242]
[1673394253014,7.94e-06,1336.3,1336.2,44.13715242]
[1673394253232,6.44e-06,1336.4,1336.3,2.0]
[1673394253452,1e-08,1336.5,1336.3,30.08694674]
[1673394253661,1e-08,1336.5,1336.4,27.91900064]
[1673394253860,1e-08,1336.5,1336.4,29.67200064]
[1673394257061,1e-08,1336.5,1336.4,29.68134485]
[1673394258742,1e-08,1336.5,1336.4,22.19856485]
[1673394259049,1e-08,1336.5,1336.4,22.0903054]
[1673394259239,1e-08,1336.5,1336.4,14.6075254]
[1673394259841,1e-08,1336.5,1336.4,22.0903054]
[1673394260593,1e-08,1336.5,1336.4,14.6075254]
[1673394260801,1e-08,1336.5,1336.4,22.0903054]
[1673394261029,1e-08,1336.5,1336.4,14.6075254]
[1673394261423,1e-08,1336.5,1336.4,29.5730854]
[1673394263200,1e-08,1336.5,1336.4,14.6075254]
[1673394263530,1e-08,1336.5,1336.4,29.5730854]
[1673394263740,1e-08,1336.5,1336.4,22.0903054]
[1673394263953,1e-08,1336.5,1336.4,29.5730854]
[1673394264310,0.7358542,1336.6,1336.5,7.48429322]
[1673394264499,0.7358542,1336.6,1336.5,11.34795386]
[1673394264711,0.7378542,1336.6,1336.5,11.34595386]
[1673394264886,0.7358542,1336.6,1336.5,11.34795386]
[1673394267098,0.7358542,1336.6,1336.5,3.86573386]
[1673394267344,0.7358542,1336.6,1336.5,3.79973386]
[1673394267762,25.84682535,1336.6,1336.5,0.00207322]
[1673394267989,35.02582535,1336.6,1336.5,0.00207322]
[1673394268811,20.06250535,1336.6,1336.5,0.00207322]
[1673394268998,27.54416535,1336.6,1336.5,0.00207322]
[1673394269455,20.06250535,1336.6,1336.5,0.00207322]
[1673394270161,12.58084535,1336.6,1336.5,0.00207322]
[1673394270573,14.58084535,1336.6,1336.5,0.00207322]
[1673394271407,12.58084535,1336.6,1336.5,0.00207322]
[1673394271835,20.06250535,1336.6,1336.5,0.00207322]
[1673394272673,40.40598713,1336.6,1336.5,0.00207322]
[1673394272930,42.65338713,1336.6,1336.0,0.066]
[1673394273104,29.94440049,1336.5,1336.0,3.79766064]
[1673394273315,22.44918,1336.4,1335.9,0.066]
[1673394273525,26.21534178,1336.4,1335.9,3.79766064]
[1673394273744,26.21534178,1336.4,1335.9,5.79766064]
[1673394273949,26.21534178,1336.4,1335.9,3.86366064]
[1673394274169,1.685,1336.1,1335.8,0.066]
[1673394274468,1.685,1336.1,1335.8,5.79766064]
[1673394274845,1.685,1336.1,1335.8,5.86366064]
[1673394275649,33.60614,1336.2,1335.9,3.0]
[1673394275970,26.12182,1336.2,1335.9,3.0]
[1673394278084,33.60614,1336.2,1335.9,3.0]
[1673394278971,34.94514,1336.2,1335.9,3.0]
[1673394279413,11.1533,1336.2,1335.9,30.1406067]
[1673394279710,11.1533,1336.2,1335.9,22.7210167]
[1673394280162,11.1533,1336.2,1335.9,15.2354267]
[1673394281138,18.63726,1336.2,1335.9,7.7500267]
[1673394281317,18.63726,1336.2,1335.9,15.2355767]
[1673394281534,18.63726,1336.2,1335.9,7.7500267]
[1673394282777,18.63726,1336.2,1335.9,15.2355567]
[1673394283462,18.63726,1336.2,1335.9,7.7500267]
[1673394283829,26.12122,1336.2,1335.9,7.7500267]
[1673394285301,27.24200044,1336.2,1335.9,7.7500267]
[1673394285739,26.12116,1336.2,1335.9,7.7500267]
[1673394286511,27.24188044,1336.2,1335.9,7.7500267]
[1673394286663,19.75798044,1336.2,1335.9,7.7500267]
[1673394286875,34.72578044,1336.2,1335.9,7.7500267]
[1673394287232,34.72578044,1336.2,1335.9,0.066]
[1673394287233,23.79806,1336.0,1335.9,0.066]
[1673394287559,23.79806,1336.0,1335.8,0.7489]
[1673394287560,23.86406,1336.0,1335.7,0.84163336]
[1673394287773,30.28440785,1336.0,1335.7,3.890394]
[1673394287946,33.82401389,1336.0,1335.7,0.09273336]
[1673394288367,26.33899389,1336.0,1335.7,0.09273336]
[1673394288925,18.85397389,1336.0,1335.7,0.09273336]
[1673394289090,22.23780785,1336.0,1335.7,0.09273336]
[1673394289303,14.75266785,1336.0,1335.7,0.09273336]
[1673394289545,14.75266785,1336.0,1335.7,15.06608336]
[1673394289762,14.75266785,1336.0,1335.7,15.13208336]
[1673394290080,14.75266785,1336.0,1335.7,22.61879336]
[1673394293190,14.75266785,1336.0,1335.7,29.65050596]
[1673394295839,13.40700001,1336.0,1335.7,29.65050596]
[1673394296462,13.40700001,1336.0,1335.8,3.79766064]
[1673394296696,12.13192072,1336.0,1335.9,3.79766064]
[1673394296908,10.10891799,1336.0,1335.9,33.74002064]
[1673394297098,9.5817837,1336.0,1335.9,37.83520043]
[1673394297411,9.5817837,1336.0,1335.9,40.83520043]
[1673394300435,9.5817837,1336.0,1335.9,42.69222425]
[1673394300887,9.5817837,1336.0,1335.9,45.47770136]
[1673394302595,9.5817837,1336.0,1335.9,42.69222425]
[1673394303318,9.5817837,1336.0,1335.9,42.92222425]
[1673394303498,9.5817837,1336.0,1335.9,35.43663425]
[1673394305419,9.5817837,1336.0,1335.9,35.20663425]
[1673394305824,9.5817837,1336.0,1335.9,37.99221122]
[1673394308385,9.5817837,1336.0,1335.9,18.37843043]
[1673394308550,9.5817837,1336.0,1335.9,33.34961043]
[1673394309854,9.5817837,1336.0,1335.9,35.20675398]
[1673394311755,9.5817837,1336.0,1335.9,37.99247171]
[1673394316889,7.60089859,1336.0,1335.9,37.99247171]
[1673394317547,7.60089859,1336.0,1335.9,37.99047171]
[1673394317716,7.60089859,1336.0,1335.9,37.99247171]
[1673394319583,7.60089859,1336.0,1335.9,39.11418218]
[1673394320998,11.92948044,1336.4,1335.9,48.27593504]
[1673394321189,0.01,1336.1,1336.0,50.54591941]
[1673394321406,0.01,1336.1,1336.0,48.37427584]
[1673394321734,0.01,1336.1,1336.0,50.61191941]
[1673394322796,0.01,1336.1,1336.0,48.37427584]
[1673394323626,0.01,1336.1,1336.0,49.49231232]
[1673394323987,0.01,1336.1,1336.0,52.17031232]
[1673394324202,0.01,1336.1,1336.0,52.17021133]
[1673394324442,0.01,1336.1,1336.0,51.05227584]
[1673394324833,0.01,1336.1,1336.0,51.80117584]
[1673394325151,0.01,1336.1,1336.0,47.54946223]
[1673394325574,0.01,1336.1,1336.0,41.02368909]
[1673394325818,2.87666784,1336.3,1336.0,38.23797136]
[1673394326009,2.87666784,1336.3,1336.1,3.79766064]
[1673394326375,0.00266784,1336.3,1336.2,14.9678]
[1673394326577,0.00266784,1336.3,1336.2,15.0338]
[1673394327682,0.00266784,1336.3,1336.2,0.066]
[1673394327683,2.36420462,1336.3,1336.2,0.066]
[1673394327892,2.36420462,1336.3,1336.0,6.71990121]
[1673394327893,27.27800506,1336.3,1336.0,3.78590121]
[1673394328105,3.842,1336.2,1336.0,3.71990121]
[1673394328351,11.32598,1336.2,1336.0,2.97100121]
[1673394328541,4.16766497,1336.2,1336.0,2.97100121]
[1673394328876,4.16366497,1336.2,1336.0,2.97100121]
[1673394329094,11.64777497,1336.2,1336.0,2.97100121]
[1673394329402,4.16766497,1336.2,1336.0,2.97100121]
[1673394329561,4.16366497,1336.2,1336.0,2.97100121]
[1673394330300,7.48446,1336.1,1336.0,2.97100121]
[1673394330631,1.284,1336.1,1336.0,2.97100121]
[1673394330860,1.28,1336.1,1336.0,2.97100121]
[1673394332835,5.35044541,1336.2,1336.0,2.97100121]
[1673394333035,5.28844541,1336.2,1336.0,2.97100121]
[1673394333933,6.95793008,1336.2,1336.0,2.97100121]
[1673394334292,5.28844541,1336.2,1336.0,2.97100121]
[1673394334923,5.28844541,1336.2,1336.0,10.45599121]
[1673394335132,5.28844541,1336.2,1336.0,10.52199121]
[1673394335388,6.95793008,1336.2,1336.0,3.03700121]
[1673394335562,6.95793008,1336.2,1336.0,2.97100121]
[1673394341173,1.12078044,1336.1,1336.0,2.97100121]
[1673394343564,1.12078044,1336.1,1336.0,10.45602121]
[1673394343761,1.12078044,1336.1,1336.0,3.03700121]
[1673394343980,7.01993008,1336.2,1336.0,2.97100121]
[1673394344341,5.28844541,1336.2,1336.1,1.11429272]
[1673394344709,5.28844541,1336.2,1336.1,1.11039946]
[1673394344909,12.77234541,1336.2,1336.1,1.11039946]
[1673394346945,5.28844541,1336.2,1336.1,1.11039946]
[1673394350687,4.16766497,1336.2,1336.1,1.11039946]
[1673394351067,4.16366497,1336.2,1336.1,1.11039946]
[1673394351212,3.94244541,1336.2,1336.1,1.11039946]
[1673394351420,1.12078044,1336.2,1336.1,1.11039946]
[1673394351649,14.72596973,1336.3,1336.1,1.11039946]
[1673394351899,22.14733973,1336.3,1336.1,1.11039946]
[1673394352111,5.78296973,1336.3,1336.1,1.11039946]
[1673394353319,13.26630973,1336.3,1336.1,1.11039946]
[1673394353542,1.12078044,1336.2,1336.1,1.11039946]
[1673394355113,2.45578044,1336.2,1336.1,1.11039946]
[1673394355323,6.20565308,1336.2,1336.1,1.11039946]
[1673394355572,5.08887264,1336.2,1336.1,1.11039946]
[1673394355790,6.20847878,1336.2,1336.1,1.11039946]
[1673394357350,4.12809081,1336.2,1336.1,1.11039946]
[1673394357517,4.12409081,1336.2,1336.1,1.11039946]
[1673394357734,2.45460614,1336.2,1336.1,1.11039946]
[1673394361494,4.12409081,1336.2,1336.1,1.11039946]
[1673394363050,3.00448467,1336.2,1336.1,1.11039946]
[1673394363302,4.12442757,1336.2,1336.1,1.11039946]
[1673394363517,3.00448467,1336.2,1336.1,1.11039946]
[1673394364256,3.57055436,1336.2,1336.1,1.11039946]
[1673394364774,5.25109074,1336.2,1336.1,1.11039946]
[1673394364993,3.01953638,1336.2,1336.1,1.11039946]
[1673394365146,3.01553638,1336.2,1336.1,1.11039946]
[1673394365829,5.25109074,1336.2,1336.1,1.11039946]
[1673394366035,5.25509074,1336.2,1336.1,1.10656841]
[1673394366895,3.57455436,1336.2,1336.1,1.10656841]
[1673394367055,3.57055436,1336.2,1336.1,1.10656841]
[1673394367778,3.91739863,1336.2,1336.1,16.07548841]
[1673394367987,3.91739863,1336.2,1336.1,8.65702841]
[1673394368614,2.23555436,1336.2,1336.1,8.65702841]
[1673394369046,2.23555436,1336.2,1336.1,1.17256841]
[1673394369265,2.23555436,1336.2,1336.1,1.10656841]
[1673394369684,3.91693503,1336.2,1336.1,1.10656841]
[1673394370406,2.23555436,1336.2,1336.1,1.10656841]
[1673394371079,5.02371938,1336.2,1336.1,1.10656841]
[1673394371238,5.02771938,1336.2,1336.1,1.10656841]
[1673394371658,2.23955436,1336.2,1336.1,1.10656841]
[1673394371918,3.91676938,1336.2,1336.1,1.10656841]
[1673394372348,3.91676938,1336.2,1336.1,8.59102841]
[1673394372502,3.91676938,1336.2,1336.1,1.17256841]
[1673394372710,5.02371938,1336.2,1336.1,1.10656841]
[1673394372921,2.79216502,1336.2,1336.1,1.10656841]
[1673394373132,2.78816502,1336.2,1336.1,1.10656841]
[1673394375178,4.45816502,1336.2,1336.1,1.10656841]
[1673394375808,3.91112906,1336.2,1336.1,8.59102841]
[1673394376019,4.47156021,1336.2,1336.1,23.62594841]
[1673394376336,4.47156021,1336.2,1336.1,8.65702841]
[1673394376496,4.47156021,1336.2,1336.1,16.14148841]
[1673394377098,4.47156021,1336.2,1336.1,8.65702841]
[1673394377465,1.68091831,1336.2,1336.1,8.65702841]
[1673394377920,2.80148442,1336.2,1336.1,1.17256841]
[1673394378253,1.68091831,1336.2,1336.1,2.26940437]
[1673394378776,1.68091831,1336.2,1336.1,1.10656841]
[1673394378952,3.92204737,1336.2,1336.1,1.10656841]
[1673394381287,2.24112906,1336.2,1336.1,1.10656841]
[1673394385280,3.92222082,1336.2,1336.1,1.10656841]
[1673394387460,2.24112906,1336.2,1336.1,1.10656841]
[1673394387680,17.20892906,1336.2,1336.1,1.1043326]
[1673394387903,17.21292906,1336.2,1336.1,1.1043326]
[1673394388116,9.72902906,1336.2,1336.1,1.1043326]
[1673394388810,12.51719408,1336.2,1336.1,1.1043326]
[1673394389056,20.00109408,1336.2,1336.1,1.1043326]
[1673394389867,17.75996502,1336.2,1336.1,1.1043326]
[1673394390396,20.00131107,1336.2,1336.1,1.1043326]
[1673394391234,17.75996502,1336.2,1336.1,1.1043326]
[1673394394919,5.03555705,1336.2,1336.1,1.1043326]
[1673394395359,2.24739203,1336.2,1336.1,1.1043326]
[1673394395545,2.24339203,1336.2,1336.1,1.1043326]
[1673394395756,2.24339203,1336.2,1336.0,0.066]
[1673394395985,2.80444885,1336.1,1335.9,10.05114]
[1673394396214,2.80444885,1336.1,1335.9,17.34089468]
[1673394396546,2.80444885,1336.1,1335.9,20.12690264]
[1673394396923,2.80444885,1336.1,1335.9,21.24467578]
[1673394397494,2.80444885,1336.1,1335.9,28.73026578]
[1673394397708,2.80444885,1336.1,1335.9,27.61249264]
[1673394398178,2.80444885,1336.1,1335.9,21.24467578]
[1673394399281,2.80444885,1336.1,1335.9,20.12690264]
[1673394399500,2.80444885,1336.1,1335.9,21.24467578]
[1673394400173,2.80444885,1336.1,1335.9,28.73026578]
[1673394400405,2.80444885,1336.1,1336.0,2.87302658]
[1673394401561,1.12177954,1336.1,1336.0,4.7302138]
[1673394401913,1.1218795,1336.1,1336.0,4.7302138]
[1673394402132,11.47597134,1336.2,1336.0,4.7302138]
[1673394402448,1.12196048,1336.1,1336.0,2.87302658]
[1673394402764,1.12196048,1336.1,1336.0,4.73019524]
[1673394402765,1.12195034,1336.1,1336.0,4.73019524]
[1673394402917,1.1219633,1336.1,1336.0,4.73019524]
[1673394403148,1.12193584,1336.1,1336.0,4.73019524]
[1673394403358,3.99206134,1336.2,1336.0,4.73019524]
[1673394403619,3.92606134,1336.2,1335.9,21.24467578]
[1673394403811,1.12193832,1336.1,1335.9,21.24467578]
[1673394403987,1.68266931,1336.1,1335.9,21.24467578]
[1673394404197,2.80461365,1336.1,1335.9,21.24467578]
[1673394404838,2.80461365,1336.1,1335.9,13.75953578]
[1673394405778,1.68296402,1336.1,1335.9,21.24503578]
[1673394406013,2.80494002,1336.1,1335.9,21.24503578]
[1673394406344,1.12194185,1336.1,1335.9,21.24503578]
[1673394406566,1.12195641,1336.1,1336.0,1.8571815]
[1673394406724,3.99232665,1336.2,1336.0,1.8571815]
[1673394406932,3.92632665,1336.2,1336.0,1.8571815]
[1673394407139,2.24339203,1336.2,1336.0,1.8571815]
[1673394407359,2.24339203,1336.2,1335.9,21.24503578]
[1673394407571,2.80491611,1336.1,1335.9,21.24503578]
[1673394407786,1.68295399,1336.1,1335.9,21.24503578]
[1673394408012,1.68295397,1336.1,1336.0,2.12450358]
[1673394408233,4.4878764,1336.1,1335.9,21.24503578]
[1673394408452,3.36592057,1336.1,1335.9,21.24503578]
[1673394408623,3.36592056,1336.1,1335.9,36.21621578]
[1673394408836,2.80491805,1336.1,1336.0,1.85717156]
[1673394409040,1.68295397,1336.1,1336.0,1.85318558]
[1673394409253,1.68295397,1336.1,1336.0,9.33820558]
[1673394409254,2.80490983,1336.1,1336.0,9.33820558]
[1673394409466,2.80491808,1336.1,1336.0,9.40420558]
[1673394409712,1.68295397,1336.1,1336.0,9.40420558]
[1673394410079,2.80492322,1336.1,1336.0,9.40420558]
[1673394410320,2.80490082,1336.1,1336.0,9.40420558]
[1673394410531,1.68295397,1336.1,1336.0,17.00874936]
[1673394410741,2.80487556,1336.1,1336.0,24.49376936]
[1673394410954,1.68295397,1336.1,1336.0,27.27977732]
[1673394411145,2.80487566,1336.1,1336.0,27.27977732]
[1673394411355,3.92679749,1336.1,1336.0,27.27977732]
[1673394411580,3.92680023,1336.1,1336.0,27.27977732]
[1673394411795,3.92678997,1336.1,1336.0,27.27977732]
[1673394411987,2.80487566,1336.1,1336.0,27.27977732]
[1673394412987,3.92672766,1336.1,1336.0,27.27977732]
[1673394413299,3.92672766,1336.1,1336.0,19.79475732]
[1673394413522,2.80487566,1336.1,1336.0,24.49376936]
[1673394413735,2.80487566,1336.1,1336.0,27.27977732]
[1673394413881,3.92672766,1336.1,1336.0,19.79475732]
[1673394414376,3.92672766,1336.1,1336.0,12.30973732]
[1673394414510,3.92672766,1336.1,1336.0,9.52372936]
[1673394414718,3.92672766,1336.1,1336.0,12.30973732]
[1673394415253,5.60966599,1336.1,1336.0,0.066]
[1673394415492,14.21966602,1336.1,1335.9,0.066]
[1673394415703,1.12203586,1336.0,1335.9,3.0]
[1673394418359,2.80497419,1336.0,1335.9,3.0]
[1673394421042,1.12203586,1336.0,1335.9,3.0]
[1673394423245,2.80497419,1336.0,1335.9,3.0]
[1673394426568,1.12203586,1336.0,1335.9,3.0]
[1673394427712,1.12203586,1336.0,1335.9,7.82567014]
[1673394427870,1.12203586,1336.0,1335.9,5.37567014]
[1673394428082,1.12203586,1336.0,1335.9,5.39167014]
[1673394429288,1.12203586,1336.0,1335.9,7.24898359]
[1673394429643,1.11829194,1336.0,1335.9,7.24898359]
[1673394433958,4.55381399,1336.1,1335.9,7.24898359]
[1673394434176,4.48781399,1336.1,1335.9,8.17778844]
[1673394434360,4.48781399,1336.1,1335.9,5.39167014]
[1673394435724,4.48781399,1336.1,1335.9,16.67483078]
[1673394435924,4.48781399,1336.1,1335.9,19.46075525]
[1673394436317,4.48781399,1336.1,1335.9,16.67483078]
[1673394436681,4.48781399,1336.1,1335.9,19.46073135]
[1673394437529,4.48781399,1336.1,1335.9,26.94432135]
[1673394437530,4.48981399,1336.1,1335.9,26.94432135]
[1673394437686,2.80487566,1336.1,1336.0,27.0066606]
[1673394437890,2.80487566,1336.1,1336.0,27.0726606]
[1673394438150,2.80487566,1336.1,1336.0,12.1026206]
[1673394438560,2.80487566,1336.1,1336.0,19.5876406]
[1673394438953,2.80487566,1336.1,1336.0,27.0726606]
[1673394439165,2.80487566,1336.1,1336.0,25.07130124]
[1673394440208,2.80487566,1336.1,1336.0,33.67409438]
[1673394440432,2.80487566,1336.1,1336.0,27.8569456]
[1673394440682,2.80487566,1336.1,1336.0,32.55632124]
[1673394440868,2.80487566,1336.1,1336.0,35.3419656]
[1673394441374,2.80487566,1336.1,1336.0,27.8569456]
[1673394442130,2.80487566,1336.1,1336.0,25.07130124]
[1673394442320,2.80487566,1336.1,1336.0,17.58628124]
[1673394442506,2.80487566,1336.1,1336.0,10.10126124]
[1673394443256,2.80487566,1336.1,1336.0,17.58628124]
[1673394444437,2.05988197,1336.1,1336.0,22.96280868]
[1673394444572,2.78816502,1336.4,1336.0,43.27238149]
[1673394444573,1.12144741,1336.4,1336.0,43.27238149]
[1673394444872,3.24423036,1336.5,1336.1,26.55693722]
[1673394444873,0.002,1336.2,1336.1,26.55693722]
[1673394445079,2.80438574,1336.5,1336.1,46.29067286]
[1673394445231,2.80438574,1336.5,1336.3,22.45002]
[1673394445445,1.12144741,1336.5,1336.4,9.16078]
[1673394445709,1.12144741,1336.5,1336.4,9.22678]
[1673394446294,1.12144741,1336.5,1336.4,24.19234]
[1673394447596,1.12144741,1336.5,1336.4,16.70956]
[1673394448396,12.82323994,1336.6,1336.4,16.70956]
[1673394448662,1.12144741,1336.5,1336.4,16.70956]
[1673394449631,1.12144741,1336.5,1336.4,30.93409792]
[1673394449632,0.05100001,1336.5,1336.4,30.93409792]
[1673394449922,0.05100001,1336.5,1336.4,34.5860712]
[1673394450088,0.05100001,1336.5,1336.4,30.93409792]
[1673394452436,1e-08,1336.5,1336.4,30.93409792]
[1673394456301,1e-08,1336.5,1336.4,34.5860712]
[1673394456512,1e-08,1336.5,1336.4,31.68299792]
[1673394459354,0.7358542,1336.6,1336.5,2.31199999]
[1673394459565,0.7358542,1336.6,1336.5,32.56599077]
[1673394459785,0.7358542,1336.6,1336.5,32.63199077]
[1673394460223,0.7358542,1336.6,1336.5,7.87533077]
[1673394460433,0.7358542,1336.6,1336.5,26.31232063]
[1673394463185,0.7358542,1336.6,1336.5,18.83010063]
[1673394463343,5.4418542,1336.6,1336.5,3.86566063]
[1673394463571,5.4418542,1336.6,1336.5,0.00199999]
[1673394463572,7.4458542,1336.6,1336.5,0.00199999]
[1673394463782,10.73039071,1336.6,1336.5,0.00199999]
[1673394463987,5.4458542,1336.6,1336.5,0.00199999]
[1673394464193,7.4458542,1336.6,1336.5,0.00199999]
[1673394464661,5.4458542,1336.6,1336.5,0.00199999]
[1673394464833,7.4458542,1336.6,1336.5,0.00199999]
[1673394465049,5.4458542,1336.6,1336.5,0.00199999]
[1673394465401,7.4458542,1336.6,1336.5,0.00199999]
[1673394467087,11.32223712,1336.6,1336.5,0.00199999]
[1673394467244,26.28555712,1336.6,1336.5,0.00199999]
[1673394467467,18.80389712,1336.6,1336.5,0.00199999]
[1673394467905,42.45212873,1336.6,1336.5,0.00199999]
[1673394468142,28.81315455,1336.6,1336.5,0.00199999]
[1673394468295,49.02280804,1336.6,1336.5,0.00199999]
[1673394468519,53.2271695,1336.6,1336.5,0.00199999]
[1673394468768,53.78000801,1336.6,1336.5,0.00199999]
[1673394469136,55.45700801,1336.6,1336.5,0.00199999]
[1673394469347,51.80503473,1336.6,1336.5,0.00199999]
[1673394469976,52.55715374,1336.6,1336.5,0.00199999]
[1673394471441,57.21862264,1336.6,1336.5,0.00199999]
[1673394471657,85.28022338,1336.6,1336.5,0.00199999]
[1673394475504,81.17816363,1336.6,1336.5,0.00199999]
[1673394475723,2.0,1336.5,1336.1,2.97077305]
[1673394476062,6.16231007,1336.2,1336.1,2.97077305]
[1673394476375,28.61802259,1336.2,1336.1,2.97077305]
[1673394480032,26.94083655,1336.2,1336.1,2.97077305]
[1673394480685,19.45693655,1336.2,1336.1,2.97077305]
[1673394481018,18.3388,1336.2,1336.1,2.97077305]
[1673394481187,25.8227,1336.2,1336.1,2.97077305]
[1673394482635,18.3388,1336.2,1336.1,2.97077305]
[1673394483319,29.80881681,1336.2,1336.1,2.97077305]
[1673394484327,28.69068026,1336.2,1336.1,2.97077305]
[1673394484535,21.20678026,1336.2,1336.1,2.97077305]
[1673394485063,28.69068026,1336.2,1336.1,2.97077305]
[1673394485691,21.20678026,1336.2,1336.1,2.97077305]
[1673394485948,25.8227,1336.2,1336.1,2.97077305]
[1673394486228,18.3388,1336.2,1336.1,2.97077305]
[1673394486767,25.8227,1336.2,1336.1,2.97077305]
[1673394487233,18.3388,1336.2,1336.1,2.97077305]
[1673394487445,1.686,1336.2,1336.1,2.97077305]
[1673394487614,1.682,1336.2,1336.1,2.97077305]
[1673394489501,1.682,1336.2,1336.0,0.066]
[1673394489712,1.682,1336.2,1336.0,3.451872]
[1673394489990,1.682,1336.2,1335.9,14.67148]
[1673394490168,1.682,1336.2,1335.9,18.46914064]
[1673394490384,9.16594,1336.2,1335.9,18.46914064]
[1673394490552,7.48794,1336.2,1335.9,18.46914064]
[1673394492612,7.48794,1336.2,1335.9,10.98386064]
[1673394492771,7.48794,1336.2,1336.0,1.09838606]
[1673394492772,14.97188,1336.2,1336.0,1.09838606]
[1673394493380,14.97188,1336.2,1335.9,10.98386064]
[1673394494020,22.45582,1336.2,1335.9,10.98386064]
[1673394495015,23.79482,1336.2,1335.9,10.98386064]
[1673394496282,24.91295655,1336.2,1335.9,10.98386064]
[1673394497701,23.57395655,1336.2,1335.9,10.98386064]
[1673394497906,8.60607655,1336.2,1335.9,12.83914621]
[1673394498160,7.48794,1336.2,1335.9,12.83914621]
[1673394498589,7.48794,1336.2,1335.9,12.83702164]
[1673394498590,8.60607655,1336.2,1335.9,12.83702164]
[1673394500756,10.28326259,1336.2,1335.9,12.83702164]
[1673394501638,8.60607655,1336.2,1335.9,12.83702164]
[1673394502213,10.28326259,1336.2,1335.9,12.83702164]
[1673394502959,1.11813655,1336.1,1335.9,7.18407543]
[1673394503174,2.46113655,1336.0,1335.9,7.18407543]
[1673394503507,26.59338259,1336.0,1335.9,0.066]
[1673394503707,30.31063456,1336.0,1335.8,0.08295504]
[1673394504858,1.11813655,1335.9,1335.8,0.08295504]
[1673394505105,23.57490655,1335.9,1335.8,0.08295504]
[1673394505294,23.57890655,1335.9,1335.8,0.08295504]
[1673394508379,25.25609259,1335.9,1335.8,0.08295504]
[1673394510167,23.57890655,1335.9,1335.8,0.08295504]
[1673394510538,25.25609259,1335.9,1335.8,0.08295504]
[1673394510748,32.47888436,1335.9,1335.8,0.08295504]
[1673394510962,30.24263631,1335.9,1335.8,0.08295504]
[1673394511591,32.47888436,1335.9,1335.8,0.08295504]
[1673394512113,30.24263631,1335.9,1335.8,0.08295504]
[1673394513950,30.24530415,1335.9,1335.8,0.08295504]
[1673394514456,31.3636405,1335.9,1335.8,0.08295504]
[1673394515735,31.36366639,1335.9,1335.8,0.08295504]